Cogmind - Beta 15 @@@ ROGUE MODE // 2025.05.17 @ 00:41:28 Player: jumpy Result: Destroyed by G-34 Mercenary with Small Laser Performance ------------- Evolutions (1) 500 Regions Visited (2) 400 Robots Destroyed (20) 100 Value Destroyed (413) 413 Prototype IDs (1) 20 Alien Tech Used (0) 0 Bonus (0) 0 TOTAL SCORE: 1433 Bonus ------- None Cogmind --------- Core Integrity 0/400 Matter 300/300 Energy 99/100 System Corruption 0% Temperature Cool (6) Movement Core (200) Ox3 Location -9/Materials Parts ------- > --- POWER (1) -------- (None) > --- PROPULSION (2) --- (None) > --- UTILITY (4) ------ Medium Storage Unit > --- WEAPON (2) ------- (None) > --- INVENTORY (10) --- Ion Engine Heavy Ion Engine Light Treads Light Treads Light Treads Wheel Authchip [R/Combat] Authchip [R/Combat] Trap Extractor (0/4) Rocket Launcher Peak State ------------ > --- POWER ------------ Ion Engine > --- PROPULSION ------- Light Treads Light Treads > --- UTILITY ---------- Medium Storage Unit Sensor Array Improved Terrain Scanner Seismic Detector > --- WEAPON ----------- Medium Laser Mining Claw > --- INVENTORY -------- Ion Engine Ion Engine Light Treads Light Treads Wheel Compact Wheel Authchip [R/Combat] Authchip [R/Combat] [Rating: 12] Favorites ----------- Power Ion Engine Engine Ion Engine Propulsion Light Treads Treads Light Treads Utility Medium Storage Unit Device Sensor Array Storage Medium Storage Unit Weapon EM Pulse Gun Energy Gun EM Pulse Gun Ballistic Gun Light Assault Rifle Slashing Weapon Mining Claw Build | -11 -10 -9 ------- Run | Yrd Mat Mat Slots Evolved 2 | . . 2 Power . | . . . Propulsion . | . . . Utility 2 | . . 2 Weapon . | . . . Parts Attached 18 | 8 4 6 Power 2 | 1 . 1 Engine 2 | 1 . 1 Core . | . . . Reactor . | . . . Propulsion 5 | 2 . 3 Treads 5 | 2 . 3 Leg . | . . . Wheel . | . . . Hover . | . . . Flight . | . . . Utility 5 | 2 2 1 Device 3 | 1 1 1 Storage 2 | 1 1 . Processor . | . . . Hackware . | . . . Protection . | . . . Artifact . | . . . Weapon 6 | 3 2 1 Energy Gun 4 | 2 1 1 Energy Cannon . | . . . Ballistic Gun 1 | 1 . . Ballistic Cannon . | . . . Launcher . | . . . Special Weapon . | . . . Impact Weapon . | . . . Slashing Weapon 1 | . 1 . Piercing Weapon . | . . . Special Melee Weapon . | . . . Unidentified Prototypes 1 | . . 1 Parts Lost 8 | . . 8 Power 1 | . . 1 Propulsion 2 | . . 2 Utility 3 | . . 3 Weapon 2 | . . 2 Highest Loss Streak 3 | . . 3 To Critical Strikes . | . . . Average Backups 7 | 3 6 9 Power 1 | . 1 2 Propulsion 2 | 1 2 3 Utility 1 | . 2 2 Weapon . | . . . Tool/Special . | . . . Unused Backups 11 | . . 11 Power 3 | . . 3 Propulsion 4 | . . 4 Utility 3 | . . 3 Weapon 1 | . . 1 Tool/Special . | . . . Average Slot Usage (%) 89 | . 99 85 Engine 11 | . 14 10 Treads 23 | . 28 21 Device 19 | . 14 21 Storage 11 | . 14 11 Energy Gun 14 | . 24 10 Slashing Weapon 8 | . 2 10 Peak Build Rating 12 | 7 8 12 Average Rating 8 | 5 7 11 On Entrance 5 | . 7 8 Naked Turns . | . . . Heaviest Build 23 | 15 20 23 Greatest Support 40 | 40 40 40 Greatest Overweight (x) 5 | . . 5 Average Overweight (x) . | . . . Largest Inventory Capacity 10 | 8 10 10 Average Capacity 9 | 7 8 10 Most Carried 10 | 5 10 10 Average Carried 7 | 3 6 9 Final Capacity 10 | 8 10 10 Final Carried 10 | 4 10 10 Class Distribution -------------------- 79% | Mutant 20% | Scavenger-Mutant Dominant Class ---------------- Mutant | -10/Materials Mutant | -9/Materials Resources | -11 -10 -9 ----------- Run | Yrd Mat Mat Matter Collected 441 | 331 40 70 Remotely . | . . . Salvage Created 787 | 177 144 466 Parts 45 | 17 11 17 Haulers Intercepted 2 | . 1 1 Recyclers Shooed 1 | . . 1 Parts Field Recycled . | . . . Retrieved Matter . | . . . Parts Self-Destructed . | . . . Prevented . | . . . Kills | -11 -10 -9 ------- Run | Yrd Mat Mat Combat Hostiles Destroyed 9 | . 2 7 Melee 2 | . . 2 Guns 7 | . 2 5 Classes Destroyed 8 | 3 2 3 Worker 2 | 1 . 1 Tunneler 4 | 4 . . Hauler 2 | . 1 1 Recycler 2 | 1 . 1 Operator 1 | . . 1 Grunt 6 | . 2 4 Duelist 1 | . . 1 Sentry 2 | . . 2 Best Kill Streak 3 | 2 2 3 Combat Bots Only 2 | . 2 2 Max Kills in Single Turn 1 | 1 1 1 Gunslinging . | . . . Exploded . | . . . Melee 1 | . . 1 Uniques/NPCs Destroyed . | . . . Combat | -11 -10 -9 -------- Run | Yrd Mat Mat Hostile Shots Fired 109 | . 1 108 Missed 27 | . . 27 Hits 82 | . 1 81 Melee 15 | . . 15 Projectile 67 | . 1 66 Critical Strikes 4 | . . 4 Damage Taken 1320 | . 11 1309 Core 401 | . . 401 Absorbed by Shields . | . . . Core Remaining (%) 100 | 100 100 . Volleys Fired 118 | 51 5 62 Largest 2 | 1 2 1 Hottest 80 | 20 80 56 Shots Fired 123 | 51 10 62 Gun 123 | 51 10 62 Cannon . | . . . Launcher . | . . . Special . | . . . Kinetic 51 | 51 . . Thermal 62 | . . 62 Explosive . | . . . Electromagnetic 10 | . 10 . Robot Hit Streak 17 | 9 3 17 Robot Miss Streak 5 | 4 5 2 Penetration Max . | . . . Secondary Targets . | . . . Shots Hit Robots 94 | 33 5 56 Core Hits 36 | 14 4 18 Critical Kills . | . . . Critical Parts Destroyed . | . . . Critical Strikes 1 | . . 1 Burn 1 | . . 1 Melee Attacks 10 | . 1 9 Impact . | . . . Slashing 10 | . 1 9 Piercing . | . . . Sneak Attacks 4 | . 1 3 Combat Hostiles . | . . . Follow-up Attacks . | . . . Damage Inflicted 1266 | 278 111 877 Guns 1001 | 278 61 662 Cannons . | . . . Explosions . | . . . Melee 262 | . 50 212 Ramming 3 | . . 3 Kinetic 278 | 278 . . Thermal 662 | . . 662 Explosive . | . . . Electromagnetic 61 | . 61 . Impact . | . . . Slashing 262 | . 50 212 Piercing . | . . . Highest Corruption . | . . . Average Corruption . | . . . Corruption Purged . | . . . Corruption Blocked . | . . . Overload Shots . | . . . Overflow Damage 41 | . . 41 Projectiles . | . . . Explosions . | . . . Melee 41 | . . 41 Knockbacks . | . . . Impact . | . . . Kinetic . | . . . Secondary . | . . . Self-Inflicted Damage . | . . . Shots . | . . . Rammed 1 | . . 1 Targets Rammed 1 | . . 1 Kicked . | . . . Crushed . | . . . Highest Temperature 189 | . 42 189 Average Temperature 37 | . 20 40 Received Heat Transfer 396 | . 6 390 Siege Activations . | . . . Martial Activations . | . . . Shielding Activations . | . . . Robots Disrupted . | . . . Combat Hostiles . | . . . Robots Corrupted . | . . . Combat Hostiles . | . . . Parts Fried . | . . . Impact Corruptions . | . . . Robots Melted . | . . . Combat Hostiles . | . . . Parts Melted 4 | . . 4 Heat Transferred 1887 | . . 1887 Parts Sabotaged . | . . . Parts Stolen . | . . . Parts Stripped . | . . . Power Chain Reactions . | . . . Alert | -11 -10 -9 ------- Run | Yrd Mat Mat Maximum Alert Level . | . . . Low Security (%) 100 | 100 100 100 Level 1 . | . . . Level 2 . | . . . Level 3 . | . . . Level 4 . | . . . Level 5 . | . . . High Security . | . . . Max Security . | . . . Peak Influence 97 | 10 50 97 Initial . | . . . Average 14 | . 8 25 Influence Increases 396 | 30 57 309 Destroy 0b10 Robot/C 180 | . 40 140 Destroy 0b10 Robot/NC 55 | 30 5 20 Destroy Leader 64 | . 12 52 Successful Hack 7 | . . 7 Disable Machine 15 | . . 15 Lose Combat Pursuer 75 | . . 75 Influence Decreases 364 | 30 57 277 Time Decay 310 | 30 57 223 Lost Part 54 | . . 54 Squads Dispatched 3 | . 1 2 Investigation . | . . . Extermination . | . . . Reinforcement 3 | . 1 2 Assault . | . . . Garrison . | . . . Intercept . | . . . Searches Triggered . | . . . Construction Impeded . | . . . Haulers Reinforced . | . . . Active Scanning Responses . | . . . Cargo Convoy Interrupts . | . . . Stealth | -11 -10 -9 --------- Run | Yrd Mat Mat Distress Signals 2 | . . 2 Communications Jammed . | . . . Distress Signals . | . . . Times Spotted 26 | . 4 22 Peak Tracking Total 8 | . 3 8 Tactical Retreats 3 | . . 3 Traps | -11 -10 -9 ------- Run | Yrd Mat Mat Traps Triggered 1 | . . 1 Indirectly . | . . . Trap Hack Attempts . | . . . Triggered . | . . . Disarmed . | . . . Reprogrammed . | . . . Reused . | . . . Traps Extracted . | . . . Installed . | . . . Triggered . | . . . Machines | -11 -10 -9 ---------- Run | Yrd Mat Mat Machines Disabled 1 | . . 1 Max in Single Turn 1 | . . 1 Machines Repaired . | . . . Machines Dismantled . | . . . Machines Sabotaged . | . . . Overloaded Fab Kills . | . . . Hacking | -11 -10 -9 --------- Run | Yrd Mat Mat Machines Accessed 2 | . 1 1 Terminals 2 | . 1 1 Fabricators . | . . . Repair Stations . | . . . Recycling Units . | . . . Scanalyzers . | . . . Garrison Access . | . . . Total Hacks 2 | . 1 1 Successful 2 | . 1 1 Failed . | . . . Catastrophic . | . . . Database Lockouts . | . . . Manual 2 | . 1 1 Terminals 2 | . 1 1 Fabricators . | . . . Repair Stations . | . . . Recycling Units . | . . . Scanalyzers . | . . . Garrison Access . | . . . Terminal Hacks . | . . . Fabricator Hacks . | . . . Repair Station Hacks . | . . . Recycling Unit Hacks . | . . . Scanalyzer . | . . . Garrison Access Hacks . | . . . Unauthorized Hacks 2 | . 1 1 Terminals 2 | . 1 1 Disrupt 1 | . . 1 Skim 1 | . 1 . Fabricators . | . . . Repair Stations . | . . . Recycling Units . | . . . Scanalyzers . | . . . Garrison Access . | . . . Data Cores Recovered . | . . . Used . | . . . Hacking Detections . | . . . Full Trace Events . | . . . Feedback Events . | . . . Feedback Blocked . | . . . Robot Schematics Acquired . | . . . Robots Built . | . . . Authchips . | . . . Time . | . . . Total Robot Build Rating . | . . . Part Schematics Acquired . | . . . Parts Built . | . . . Authchips . | . . . Time . | . . . Total Part Build Rating . | . . . Parts Repaired . | . . . Time . | . . . Parts Recycled . | . . . Recycled Matter . | . . . Retrieved Matter . | . . . Retrieved Components . | . . . Parts Scanalyzed . | . . . Part Schematics Acquired . | . . . Parts Damaged . | . . . Bothacking | -11 -10 -9 ------------ Run | Yrd Mat Mat Used RIF Installer . | . . . Robots Hacked . | . . . Non-combat . | . . . Combat . | . . . Robot Hacks Applied . | . . . Relay Couplers Released . | . . . Fabnet Peak Effective % . | . . . Robots Rewired . | . . . Allies Hacked . | . . . Hacks Repelled . | . . . Allies | -11 -10 -9 -------- Run | Yrd Mat Mat Total Allies . | . . . Largest Group . | . . . Highest-Rated Group . | . . . Highest-Rated Ally . | . . . Total Orders . | . . . Ally Attacks . | . . . Total Damage . | . . . Kills . | . . . Allies Corrupted . | . . . Allies Melted . | . . . Intel | -11 -10 -9 ------- Run | Yrd Mat Mat Active Infowar (turns) 1004 | 126 340 538 Sensors 804 | . 317 487 Terrain 522 | . . 522 Seismic 665 | 126 23 516 Robot Analysis Total . | . . . Derelict Logs Recovered . | . . . Drone Launches . | . . . Drone Recoveries . | . . . Exploration | -11 -10 -9 ------------- Run | Yrd Mat Mat Turns Passed 1503 | 396 340 767 Spaces Moved 751 | 185 194 372 Core 14 | 7 . 7 Treads 737 | 178 194 365 Legs . | . . . Wheels . | . . . Hover . | . . . Flight . | . . . Fastest Speed 50 | 50 160 160 Average Speed 159 | 155 160 161 Slowest Speed 300 | 160 160 300 Overloaded Moves . | . . . Propulsion Burnouts . | . . . Robots Hopped . | . . . Potential Cave-ins . | . . . Cave-ins Triggered . | . . . Exploration Rate (%) 24 | 11 31 30 Regions Visited 2 Branch Regions . Pre-discovered Areas . | . . . Known Exits Taken . | . . . Unknown Exits Taken 2 | 1 1 . Scrap Searched . | . . . Spaces Dug . | . . . Terrain Destroyed . | . . . Melee . | . . . Projectile . | . . . AOE . | . . . Terrain Rammed . | . . . Walls Destroyed . | . . . Machines Disabled . | . . . Actions | -11 -10 -9 --------- Run | Yrd Mat Mat Total 923 | 249 212 462 Wait 4 | . . 4 Move 749 | 184 193 372 Hop . | . . . Pick Up 15 | 5 7 3 Fast Attach 9 | 7 . 2 Attach 3 | . 1 2 Detach . | . . . Swap 7 | 1 3 3 Drop 7 | 1 2 4 Fire 118 | 51 5 62 Melee 10 | . 1 9 Ram . | . . . Kick . | . . . Crush 1 | . . 1 Escape Stasis . | . . . Rewire . | . . . Trap . | . . . Miscellaneous . | . . . Route ------- -11/Scrapyard -10/Materials -9/Materials History --------- Turn | Location | Event 3 | -11/Scrapyard | Discovered new exit (range 15) 397 | -11/Scrapyard | Entered Materials 408 | -10/Materials | Build established: Mutant 582 | -10/Materials | Discovered new exit (range 4) 737 | -10/Materials | Entered another Materials area 737 | -9/Materials | Evolved 2 slots: Utility x2 1267 | -9/Materials | Build established: Scavenger-Mutant 1306 | -9/Materials | Lost 3 parts (1p2u) 1484 | -9/Materials | Core integrity fell below 50% 1497 | -9/Materials | Core integrity fell below 20% 1504 | -9/Materials | Destroyed by G-34 Mercenary with Small Laser Last Messages --------------- 01331_ G-34 Mercenary heat damages Heat Sink, Sml. Laser, Aluminum Leg. 01334_ Destroyed Sml. Laser. 01334_ G-34 Mercenary destroyed. 01345_ Electrolysis Chamber disabled. 01349_ Heat Sink melted. 01349_ G-34 Mercenary destroyed. 01353_ Acquired 30 matter. 01372_ W-16 Scout sends out distress signal. 01398_ C-30 ARC bursts open, deploying its payload. 01398_ B-36 Bruiser unfolds itself. 01398_ G-34 Mercenary unfolds itself. 01403_ W-16 Scout sends out distress signal. 01435_ Beam Rifle destroyed. 01481_ Lgt. Treads destroyed. 01486_ Mining Claw destroyed. 01486_ Slammed into L-31 Rogue. 01489_ Lgt. Treads destroyed. 01494_ Hvy. Ion Engine severed. 01502_ Triggered Explosive Trap. 01502_ An explosion rips through the floor. Map ----- +----------------------------------------------------+ | | | | | | | | | | | | | | | | | | | | | | | ?????????????????????????????????????????????????? | | ?????????????????????????????????????????????????? | | ?????????????????????????????????????????????????? | | ?????????????????????????????????????????????????? | | ?????????????????????????##########??????????????? | | ????????????????????????? #??????????????? | | ?????????????########???? ! #??????????????? | | ?????????????# ] !#???# #??????????????? | | ?????????????# #???# #??????????????? | | ?????????????# """ #???# #??????????????? | | ?????????????# """ #???# ????????????????? | | ############## """ #???# ??????????????????? | | + # ##### ????????????????????? | | ### """"""" ####+#### ##+####???????????????? | | #?# """"""" # %bggg l@ #??????????? | | #?# """"""" + g #??????????? | | #?# """"""" # ^ #??????????? | | #?# """"""" # ######################??????????? | | #?# # #???????????????????????????????? | | #?# # #???????????????????????????????? | | ############# +???????????????????????????????? | | #???????????????????????????????? | | #???????????????????????????????? | | #???????????????????????????????? | | ## ########### #???????????????????????????????? | | ?# #?????????# #???????????????????????????????? | | ?# #?????????# #???????????????????????????????? | | ?# #?????????# +???????????????????????????????? | | ?# #?????????# #???????????????????????????????? | | ?# #?????????# #???????????????????????????????? | | ?# #?????????# #???????????????????????????????? | | ?# #?????????# #???????????????????????????????? | | ?# #?????????# #???????????????????????????????? | | ?# #?????????# #???????????????????????????????? | | ## #?????????+ #???????????????????????????????? | | T #???? ?? ?# #???????????????????????????????? | | #??????? ?# #???????????????????????????????? | | ########### ##??#???????????????????????????? | | " + ! # ##########/##??????????????????? | +----------------------------------------------------+ Best States ------------- Heat Dissipation 28 Energy Generation 14 Energy Capacity 280 Matter Stores 300 Matter Capacity 300 Sight Range 16 Robot Scan Range 14 Terrain Scan Range 16 Terrain Scan Density 10 Evasion (%) 40 Recoil Reduction 2 Authchip Count 2 Item Schematics ----------------- None Robot Schematics ------------------ None Fabricated ------------ Nothing Repaired ---------- Nothing Alien Tech Used ----------------- None Achievements -------------- None Challenges ------------ None Game ------ Seed PropulsionVortexMesh Manual? 0 Play Time 00:10:58 Cumulative 100.2 hours Start 2025.05.17 @ 00:33:31 End 2025.05.17 @ 00:41:28 Sessions 1 Manual Loads 0 Difficulty Rogue Special Mode None Game No. 258 Rogue 258 Adventurer 0 Explorer 0 Win Type - Total 2 Types 2/0/0/0/0/0/0/0/0/0 Lore% 48 Gallery% 49 Achievement% 41 Wizard Run 0 Options --------- Layout 0 ASCII 0 Keyboard 0 Movement Numpad Keybinds 0 Fullscreen 2 Font 18/Terminus Map View 76x50 Zoom Use 0% Tactical HUD 1 Map Filters NONE Filters NONE Steam 1 RUN: bc5811c6-4a1e-4d7b-a437-f13ed06e7998